bitfinex/quotes_BTCUSD_20240821
["timestamp","ask_amount","ask_price","bid_price","bid_amount"]
[1724202159241,0.088,59142.0,59131.0,0.023]
[1724202159469,0.00942372,59141.0,59131.0,0.023]
[1724202159869,0.00942372,59141.0,59127.0,0.097357]
[1724202159870,0.00422768,59140.0,59128.0,0.023]
[1724202160070,0.00422768,59140.0,59129.0,0.006]
[1724202160276,0.008713,59139.0,59130.0,0.023]
[1724202160849,0.005,59141.0,59129.0,0.086]
[1724202161054,0.188,59142.0,59130.0,0.023]
[1724202161055,0.008713,59138.0,59130.0,0.023]
[1724202161247,0.088,59142.0,59130.0,0.023]
[1724202161248,0.188,59142.0,59130.0,0.023]
[1724202161450,0.004,59140.0,59130.0,0.023]
[1724202162143,0.008713,59139.0,59130.0,0.023]
[1724202163722,0.008713,59139.0,59128.0,0.023]
[1724202164320,0.003,59139.0,59128.0,0.023]
[1724202164541,0.00871754,59138.0,59128.0,0.023]
[1724202164946,0.003,59139.0,59128.0,0.023]
[1724202165146,0.00871754,59137.0,59128.0,0.023]
[1724202165308,0.00422769,59136.0,59128.0,0.023]
[1724202165508,0.0888,59135.0,59128.0,0.023]
[1724202165709,0.0042281,59134.0,59128.0,0.023]
[1724202165933,0.01294631,59134.0,59128.0,0.023]
[1724202166134,0.0655,59133.0,59128.0,0.023]
[1724202166414,0.02095281,59132.0,59128.0,0.023]
[1724202166623,0.01294629,59132.0,59128.0,0.023]
[1724202166823,0.00871811,59132.0,59128.0,0.023]
[1724202167852,0.00871811,59132.0,59128.0,0.028]
[1724202168058,0.0888,59135.0,59128.0,0.028]
[1724202168263,0.00871312,59131.0,59129.0,0.0835]
[1724202168463,0.002,59138.0,59131.0,0.0713]
[1724202168867,0.00871312,59137.0,59132.0,0.023]
[1724202169201,0.002,59138.0,59132.0,0.023]
[1724202169408,0.00872022,59137.0,59133.0,0.0852]
[1724202169604,0.00872022,59137.0,59134.0,0.023]
[1724202169791,0.002,59138.0,59134.0,0.023]
[1724202170006,0.000822,59139.0,59134.0,0.023]
[1724202171192,0.003822,59139.0,59134.0,0.023]
[1724202172603,0.003822,59139.0,59135.0,0.0878]
[1724202172817,0.003822,59139.0,59137.0,0.1577]
[1724202173009,0.003822,59139.0,59138.0,0.0878]
[1724202173209,1e-08,59139.0,59138.0,0.1108]
[1724202173413,0.000821,59149.0,59139.0,0.0878]
[1724202173611,0.000821,59149.0,59140.0,0.023]
[1724202173815,0.000821,59149.0,59140.0,0.02]
[1724202174189,0.000821,59149.0,59141.0,0.1577]
[1724202174398,0.000821,59149.0,59142.0,0.0878]
[1724202175988,0.000821,59149.0,59143.0,0.023]
[1724202177090,0.000821,59149.0,59144.0,0.0811]
[1724202177340,0.000821,59149.0,59146.0,0.0811]
[1724202177583,0.000821,59149.0,59147.0,0.0889]
[1724202178516,0.000821,59149.0,59148.0,0.0811]
[1724202178722,0.000821,59149.0,59148.0,0.1041]
[1724202179561,0.087,59165.0,59148.0,0.1041]
[1724202179766,0.0681,59167.0,59150.0,0.0678]
[1724202180006,0.00886431,59162.0,59151.0,0.0828]
[1724202180155,0.00886431,59162.0,59153.0,0.0828]
[1724202180357,0.000821,59171.0,59153.0,0.0828]
[1724202180358,0.000821,59171.0,59154.0,0.0884]
[1724202180562,0.000821,59171.0,59155.0,0.0808]
[1724202180806,0.000821,59171.0,59156.0,0.023]
[1724202181393,0.00504628,59171.0,59156.0,0.023]
[1724202181801,0.0676,59161.0,59156.0,0.023]
[1724202181999,0.0676,59161.0,59150.0,0.1515]
[1724202182000,0.00888567,59160.0,59150.0,0.1515]
[1724202182603,0.02591624,59160.0,59150.0,0.1515]
[1724202183227,0.02591624,59160.0,59144.0,0.0866]
[1724202183228,0.09192604,59159.0,59144.0,0.0866]
[1724202183855,0.00887623,59158.0,59144.0,0.0866]
[1724202184028,0.02276949,59157.0,59145.0,0.023]
[1724202184632,0.00887623,59156.0,59145.0,0.023]
[1724202185311,0.0877,59159.0,59145.0,0.023]
[1724202185517,0.00886068,59155.0,59145.0,0.023]
[1724202185719,0.0676,59161.0,59146.0,0.0831]
[1724202185922,0.00886068,59154.0,59147.0,0.023]
[1724202186202,0.0676,59161.0,59147.0,0.023]
[1724202186347,0.09642,59163.0,59148.0,0.1508]
[1724202186546,0.00886068,59160.0,59149.0,0.1061]
[1724202186772,0.00822,59163.0,59149.0,0.1061]
[1724202186979,0.00886068,59159.0,59149.0,0.1061]
[1724202187137,0.00822,59163.0,59149.0,0.1061]
[1724202187545,0.00886068,59162.0,59149.0,0.1061]
[1724202190309,0.08482598,59161.0,59149.0,0.1070031]
[1724202190523,0.0806,59161.0,59149.0,0.1070031]
[1724202190679,0.00887493,59160.0,59149.0,0.1070031]
[1724202191218,0.00887493,59160.0,59149.0,0.15730379]
[1724202191623,0.00887493,59160.0,59149.0,0.1070031]
[1724202191967,0.0806,59161.0,59149.0,0.1070031]
[1724202192175,0.0806,59161.0,59149.0,0.15730379]
[1724202192394,0.00887343,59160.0,59149.0,0.15730379]
[1724202192801,0.00976934,59159.0,59149.0,0.0239031]
[1724202193020,0.0697,59158.0,59149.0,0.0239031]
[1724202193230,0.08205997,59158.0,59149.0,0.0009031]
[1724202193437,0.10264293,59157.0,59149.0,0.0009031]
[1724202193643,0.00422642,59156.0,59149.0,0.0009031]
[1724202193864,0.0123597,59156.0,59149.0,0.0009031]
[1724202194489,0.00813328,59156.0,59149.0,0.0019031]
[1724202194691,0.00813328,59156.0,59149.0,0.0009031]
[1724202195320,0.00422643,59155.0,59149.0,0.0009031]
[1724202195732,0.00812528,59154.0,59149.0,0.0009031]
[1724202196754,0.00812528,59154.0,59149.0,0.0039031]
[1724202196926,0.00812528,59154.0,59150.0,0.023]
[1724202197567,0.0853,59157.0,59150.0,0.023]
[1724202197773,0.00812355,59153.0,59149.0,0.0009031]
[1724202197986,0.01972646,59156.0,59149.0,0.0059031]
[1724202198193,0.00812355,59152.0,59150.0,0.023]
[1724202198401,0.01972646,59156.0,59150.0,0.023]
[1724202198610,0.00812355,59151.0,59150.0,0.023]
[1724202198766,0.01972646,59156.0,59150.0,0.023]
[1724202198966,0.00812355,59151.0,59150.0,0.023]
[1724202199519,0.0042268,59154.0,59150.0,0.023]
[1724202199727,0.00812355,59151.0,59150.0,0.023]
[1724202199969,0.0042268,59154.0,59150.0,0.023]
[1724202200175,0.00812355,59151.0,59150.0,0.028]
[1724202200381,0.0042268,59154.0,59150.0,0.028]
[1724202200595,0.00812355,59151.0,59150.0,0.028]
[1724202200796,0.0042268,59154.0,59150.0,0.028]
[1724202200973,0.00812355,59151.0,59150.0,0.028]
[1724202201199,0.0042268,59154.0,59150.0,0.028]
[1724202201394,0.00812355,59151.0,59150.0,0.028]
[1724202201598,0.0042268,59154.0,59150.0,0.028]
[1724202201825,0.00812355,59151.0,59150.0,0.028]
[1724202202022,0.0853,59157.0,59150.0,0.028]
[1724202202235,0.0853,59157.0,59150.0,0.1136]
[1724202202438,0.008099,59156.0,59150.0,0.1086]
[1724202202814,0.008099,59156.0,59150.0,0.1176]
[1724202203017,0.008099,59156.0,59150.0,0.1086]
[1724202203222,0.000821,59154.0,59150.0,0.1086]
[1724202203381,0.00810244,59153.0,59150.0,0.1106]
[1724202204306,0.00810244,59153.0,59150.0,0.1086]
[1724202204510,0.00810244,59153.0,59149.0,0.0009031]
[1724202204511,0.0671,59151.0,59149.0,0.0009031]
[1724202204792,0.00422701,59150.0,59149.0,0.0009031]
[1724202205028,0.09492879,59150.0,59149.0,0.0009031]
[1724202205230,0.12141428,59150.0,59149.0,0.0009031]
[1724202206924,0.12241428,59150.0,59149.0,0.0009031]
[1724202207331,0.15144781,59150.0,59149.0,0.0009031]
[1724202207855,0.51364781,59150.0,59149.0,0.0009031]
[1724202208136,0.61364781,59150.0,59149.0,0.0009031]
[1724202209156,0.58461428,59150.0,59149.0,0.0009031]
[1724202209359,0.58361428,59150.0,59149.0,0.0009031]
[1724202209558,0.58361428,59150.0,59149.0,0.0019031]
[1724202209559,0.58561428,59150.0,59149.0,0.0019031]
[1724202209671,0.58494522,59150.0,59149.0,0.0019031]
[1724202210980,0.58294522,59150.0,59149.0,0.0009031]
[1724202211180,0.58494522,59150.0,59149.0,0.0019031]
[1724202212560,0.58494522,59150.0,59149.0,0.0009031]
[1724202212561,0.64452184,59150.0,59149.0,0.0009031]
[1724202212984,0.64652184,59150.0,59149.0,0.0019031]
[1724202213215,0.64452184,59150.0,59149.0,0.0009031]
[1724202213757,0.64652184,59150.0,59149.0,0.0019031]
[1724202213869,0.64652184,59150.0,59149.0,0.0009031]
[1724202214070,0.64852184,59150.0,59149.0,0.0019031]
[1724202214489,0.64652184,59150.0,59149.0,0.0009031]
[1724202215942,0.65952184,59150.0,59149.0,0.0019031]
[1724202216207,0.65752184,59150.0,59149.0,0.0009031]
[1724202216474,0.67052184,59150.0,59149.0,0.0019031]
[1724202216677,0.64452184,59150.0,59149.0,0.0009031]
[1724202217086,0.65752184,59150.0,59149.0,0.0019031]
[1724202217287,0.64452184,59150.0,59149.0,0.0009031]
[1724202217754,0.65852184,59150.0,59149.0,0.0009031]
[1724202218146,0.59694522,59150.0,59149.0,0.0009031]
[1724202219070,0.58294522,59150.0,59149.0,0.0009031]
[1724202219505,0.59594522,59150.0,59149.0,0.0019031]
[1724202219673,0.58294522,59150.0,59149.0,0.0009031]
[1724202219874,0.57938727,59150.0,59149.0,0.0009031]
[1724202220076,0.12110178,59150.0,59149.0,0.0019031]
[1724202220275,0.02110178,59150.0,59149.0,0.0019031]
[1724202220475,0.01232877,59150.0,59149.0,0.0009031]
[1724202220675,0.01232877,59150.0,59149.0,0.0019031]
[1724202220882,0.02532877,59150.0,59149.0,0.0019031]
[1724202221083,0.01232877,59150.0,59149.0,0.0009031]
[1724202221956,0.04664375,59150.0,59149.0,0.0009031]
[1724202222157,0.52263218,59150.0,59149.0,0.0009031]
[1724202222635,0.63363218,59150.0,59149.0,0.0019031]
[1724202223004,0.62263218,59150.0,59149.0,0.0009031]
[1724202223417,0.63463218,59150.0,59149.0,0.0019031]
[1724202223620,0.63463218,59150.0,59149.0,0.0009031]
[1724202223824,0.6496455,59150.0,59149.0,0.0009031]
[1724202224085,0.6496455,59150.0,59129.0,0.49229154]
[1724202224086,0.2968,59132.0,59129.0,0.49229154]
[1724202224328,0.00422822,59131.0,59129.0,0.49229154]
[1724202224548,0.01216364,59131.0,59128.0,0.0009031]
[1724202226187,0.01216364,59131.0,59128.0,0.0049031]
[1724202226388,0.01216364,59131.0,59129.0,0.023]
[1724202227638,0.01216364,59131.0,59128.0,0.0009031]
[1724202227788,0.03089636,59130.0,59128.0,0.0009031]
[1724202227985,0.01214013,59129.0,59128.0,0.0009031]
[1724202229598,0.01293665,59129.0,59128.0,0.0009031]
[1724202229854,0.00891175,59129.0,59128.0,0.0009031]
[1724202230156,0.01314013,59129.0,59128.0,0.0009031]
[1724202230955,0.00891175,59129.0,59128.0,0.0009031]
[1724202231210,0.01314014,59129.0,59128.0,0.0009031]
[1724202232090,0.00891175,59129.0,59128.0,0.0009031]
[1724202232527,0.00791175,59129.0,59128.0,0.0009031]
[1724202232726,0.00891175,59129.0,59128.0,0.0009031]
[1724202232844,0.001,59129.0,59128.0,0.0009031]
[1724202233045,0.00888421,59129.0,59128.0,0.0009031]
[1724202234471,0.00888421,59129.0,59128.0,0.0239031]
[1724202235299,0.00888421,59129.0,59128.0,0.0932031]
[1724202235500,0.00888421,59129.0,59128.0,0.1749031]
[1724202235867,0.001,59129.0,59128.0,0.1749031]
[1724202241200,0.001,59129.0,59128.0,0.1519031]
[1724202242916,0.00893297,59129.0,59128.0,0.1749031]
[1724202243149,0.001,59129.0,59128.0,0.1749031]
[1724202244424,0.00893297,59129.0,59128.0,0.1749031]
[1724202244628,0.001,59129.0,59128.0,0.1749031]
[1724202244837,0.00893297,59129.0,59128.0,0.1749031]
[1724202245036,0.001,59129.0,59128.0,0.1749031]
[1724202245238,0.00893297,59129.0,59128.0,0.1749031]
[1724202245444,0.001,59129.0,59128.0,0.0239031]
[1724202245680,0.00893297,59129.0,59128.0,0.0009031]
[1724202245890,0.00892026,59129.0,59128.0,0.0009031]
[1724202246679,0.09192026,59129.0,59128.0,0.0009031]
[1724202247887,0.33121514,59129.0,59128.0,0.0009031]
[1724202249015,0.29192026,59129.0,59128.0,0.0009031]
[1724202249402,0.20892026,59129.0,59128.0,0.0009031]
[1724202250040,0.20881636,59129.0,59128.0,0.0009031]
[1724202250936,0.00881636,59129.0,59128.0,0.0009031]
[1724202252095,0.00963736,59129.0,59128.0,0.0009031]
[1724202253760,0.00963736,59129.0,59128.0,0.0239031]
[1724202255298,0.0017171,59129.0,59128.0,0.0239031]
[1724202256094,0.0017171,59129.0,59128.0,0.1074031]
[1724202256298,0.0017171,59129.0,59128.0,0.10904415]
[1724202256502,0.0017171,59129.0,59128.0,0.1779031]
[1724202256706,0.0017171,59129.0,59128.0,0.17954373]
[1724202257819,0.0017171,59129.0,59128.0,0.55499187]
[1724202258023,0.0017171,59129.0,59128.0,0.65643674]
[1724202258245,0.0017171,59129.0,59128.0,0.55499187]
[1724202258423,0.0017171,59129.0,59128.0,0.65640084]
[1724202259341,0.0017171,59129.0,59128.0,0.17954373]
[1724202259561,0.0017171,59129.0,59128.0,0.63103985]
[1724202260308,0.0017171,59129.0,59128.0,0.55498898]
[1724202261940,0.0017171,59129.0,59128.0,0.65639795]
[1724202262661,0.000821,59129.0,59128.0,0.55334835]
[1724202262863,0.001821,59129.0,59128.0,0.55934835]
[1724202263278,0.001821,59129.0,59128.0,0.56234835]
[1724202264053,0.000821,59149.0,59133.0,0.001]
[1724202264263,0.000821,59149.0,59137.0,0.001]
[1724202264472,0.000821,59149.0,59137.0,0.1508]
[1724202264669,0.000821,59149.0,59138.0,0.0806]
[1724202265743,0.001821,59149.0,59138.0,0.0806]
[1724202266349,0.002821,59149.0,59140.0,0.0865]
[1724202266557,0.002821,59149.0,59141.0,0.023]
[1724202266959,0.08918156,59148.0,59141.0,0.023]
[1724202267160,0.08918156,59148.0,59139.0,0.023]
[1724202267924,0.00798156,59148.0,59139.0,0.02463861]
[1724202268106,0.00798156,59148.0,59141.0,0.005]
[1724202268307,0.00798156,59148.0,59143.0,0.0844]
[1724202268534,0.00798156,59148.0,59144.0,0.023]
[1724202268742,0.00798156,59148.0,59145.0,0.067]
[1724202268945,0.000821,59149.0,59146.0,0.023]
[1724202271667,0.001,59148.0,59147.0,0.0855]
[1724202271871,0.001,59148.0,59147.0,0.1085]
[1724202272479,0.000821,59149.0,59147.0,0.1085]
[1724202272650,0.000821,59149.0,59148.0,0.0246369]
[1724202272857,0.000821,59149.0,59148.0,0.023]
[1724202273930,0.000821,59149.0,59148.0,0.1683]
[1724202274137,0.000821,59149.0,59148.0,0.2683]
[1724202275042,0.001821,59149.0,59148.0,0.2823]
[1724202275618,0.001821,59149.0,59148.0,0.2683]
[1724202275821,0.000821,59149.0,59148.0,0.2683]
[1724202276052,0.001821,59149.0,59148.0,0.2823]
[1724202280572,1e-06,59150.0,59149.0,0.18512]
[1724202280777,0.000821,59173.0,59161.0,0.0828]
[1724202280982,0.000821,59173.0,59161.0,0.447]
[1724202282150,0.000821,59173.0,59161.0,0.461]
[1724202282779,0.000821,59173.0,59161.0,0.4941945]
[1724202283543,1e-08,59162.0,59161.0,0.4941945]
[1724202285203,1e-08,59162.0,59161.0,0.484]
[1724202286180,1e-08,59162.0,59161.0,0.51792]
[1724202286417,1e-08,59162.0,59161.0,0.62292]
[1724202286621,1e-08,59162.0,59161.0,0.61892]
[1724202286971,1e-08,59162.0,59161.0,0.62292]
[1724202287391,1e-08,59162.0,59161.0,0.60892]
[1724202287636,1e-08,59162.0,59161.0,0.62292]
[1724202288471,0.00082101,59162.0,59161.0,0.62292]
[1724202289965,0.08504101,59163.0,59162.0,0.18852]
[1724202290306,0.08504101,59163.0,59162.0,0.28452]
[1724202290307,0.08360726,59163.0,59162.0,0.28452]
[1724202291602,0.000821,59173.0,59166.0,0.001]
[1724202293082,0.000821,59173.0,59165.0,0.023]
[1724202293690,0.00807291,59170.0,59165.0,0.023]
[1724202294340,0.000821,59173.0,59165.0,0.023]
[1724202294556,0.00807291,59169.0,59165.0,0.023]
[1724202294760,0.00807291,59169.0,59166.0,0.014]
[1724202294966,0.000821,59173.0,59167.0,0.023]
[1724202295192,0.00807291,59168.0,59167.0,0.023]
[1724202295398,0.000821,59173.0,59165.0,0.037]
[1724202295602,0.000821,59173.0,59165.0,0.023]
[1724202295815,0.00807291,59170.0,59165.0,0.023]
[1724202296024,0.00807291,59170.0,59166.0,0.014]
[1724202296227,0.000821,59173.0,59167.0,0.023]
[1724202296463,0.000821,59173.0,59165.0,0.023]
[1724202296685,0.00807291,59170.0,59165.0,0.023]
[1724202297110,0.000821,59173.0,59165.0,0.023]
[1724202297518,0.00807291,59170.0,59165.0,0.023]
[1724202297758,0.00807291,59170.0,59165.0,0.037]
[1724202297965,0.000821,59173.0,59165.0,0.037]
[1724202298374,0.0080387,59170.0,59165.0,0.037]
[1724202298813,0.000821,59173.0,59165.0,0.037]
[1724202299046,0.0080387,59169.0,59165.0,0.037]
[1724202299262,0.000821,59173.0,59165.0,0.023]
[1724202299470,0.000821,59173.0,59165.0,0.037]
[1724202299668,0.0080387,59170.0,59165.0,0.037]
[1724202300086,0.000821,59173.0,59165.0,0.037]
[1724202300361,0.000821,59168.0,59165.0,0.037]
[1724202300691,0.000821,59168.0,59165.0,0.03312764]
[1724202300894,0.000821,59168.0,59167.0,0.2968]
[1724202301223,0.080821,59168.0,59167.0,0.05026971]
[1724202301584,0.080821,59168.0,59161.0,0.12657739]
[1724202301585,0.0804,59166.0,59161.0,0.0009031]
[1724202301787,0.0804,59166.0,59165.0,0.014]
[1724202302525,0.0804,59166.0,59161.0,0.0009031]
[1724202302936,0.0675,59165.0,59161.0,0.0009031]
[1724202303328,0.0675,59165.0,59162.0,0.05026971]
[1724202303727,0.0675,59165.0,59163.0,0.023]
[1724202304463,0.0675,59165.0,59164.0,0.05026971]
[1724202304673,0.0675,59165.0,59164.0,0.07355641]
[1724202304877,0.0675,59165.0,59164.0,0.023]
[1724202305284,0.0675,59165.0,59164.0,0.39823015]
[1724202305615,0.000821,59168.0,59164.0,0.52477268]
[1724202305819,0.000821,59168.0,59167.0,0.10123487]
[1724202306019,0.000821,59168.0,59167.0,0.52477268]
[1724202306429,0.000821,59168.0,59167.0,0.59074669]
[1724202306639,0.00889728,59168.0,59167.0,0.56420051]
[1724202306866,0.000821,59168.0,59167.0,1.32760364]
[1724202307422,0.000821,59168.0,59167.0,0.80235593]
[1724202307709,0.000821,59168.0,59167.0,1.32757153]
[1724202308158,0.000821,59168.0,59167.0,1.34157153]
[1724202308313,0.000821,59168.0,59167.0,0.66450051]
[1724202311397,0.000821,59168.0,59167.0,0.66446783]
[1724202311821,0.000821,59168.0,59167.0,1.18966762]
[1724202312021,0.000821,59168.0,59167.0,1.34151485]
[1724202312253,0.000821,59173.0,59172.0,0.001]
[1724202312439,0.000821,59173.0,59172.0,1.48751852]
[1724202312644,0.0002,59179.0,59176.0,0.001]
[1724202312831,0.0002,59179.0,59178.0,0.33072]
[1724202313044,0.00822,59184.0,59180.0,0.03492]
[1724202313245,0.00822,59184.0,59183.0,0.001]
[1724202313446,0.00822,59184.0,59183.0,0.15748275]
[1724202313594,0.00822,59184.0,59183.0,0.25748275]
[1724202313792,0.00822,59184.0,59183.0,0.2046]
[1724202314224,0.00822,59184.0,59183.0,0.28910748]
[1724202314423,0.00822,59184.0,59183.0,0.23852]
[1724202314839,0.00822,59184.0,59183.0,0.25252]
[1724202315623,0.00822,59184.0,59183.0,0.23852]
[1724202316020,0.00822,59184.0,59183.0,0.30692]
[1724202316229,0.00822,59184.0,59183.0,0.38276022]
[1724202316430,0.00822,59184.0,59183.0,0.30692]
[1724202317023,0.00822,59184.0,59183.0,0.32092]
[1724202317366,0.00822,59184.0,59183.0,0.37144741]
[1724202319254,0.00822,59184.0,59183.0,0.17092]
[1724202319454,0.00822,59184.0,59183.0,0.07092]
[1724202319656,0.00822,59184.0,59183.0,0.31992]
[1724202320217,0.00822,59184.0,59183.0,0.32092]
[1724202321004,0.00822,59184.0,59183.0,0.37144741]
[1724202321413,0.00822,59184.0,59183.0,0.32092]
[1724202323524,0.00822,59184.0,59183.0,0.79705773]
[1724202323969,0.00822,59184.0,59183.0,0.69593744]
[1724202324171,0.00822,59184.0,59183.0,0.75770352]
[1724202324517,0.00822,59184.0,59183.0,0.39668779]
[1724202324824,0.00822,59184.0,59183.0,0.38268779]
[1724202324997,0.00822,59184.0,59183.0,0.39668779]
[1724202325195,0.00822,59184.0,59183.0,0.77171424]
[1724202325398,0.00822,59184.0,59183.0,0.38268779]
[1724202325624,0.00822,59184.0,59183.0,0.39668779]
[1724202325829,0.00822,59184.0,59183.0,0.32092]
[1724202326028,0.00822,59184.0,59183.0,0.7970665]
[1724202326226,0.00822,59184.0,59183.0,0.69594621]
[1724202326404,0.00822,59184.0,59183.0,0.79697341]
[1724202326815,0.00822,59184.0,59183.0,0.69594621]
[1724202327204,0.00822,59184.0,59183.0,0.79695884]
[1724202327817,0.00822,59184.0,59183.0,0.77170592]
[1724202328024,0.00822,59184.0,59183.0,0.77170767]
[1724202328229,0.00821,59189.0,59187.0,0.001]
[1724202328631,0.00824093,59188.0,59187.0,0.03492]
[1724202328881,0.00821,59189.0,59187.0,0.05792]
[1724202329079,0.00821,59189.0,59187.0,0.03492]
[1724202329298,0.00821,59189.0,59188.0,0.13492]
[1724202329496,0.00821,59189.0,59188.0,0.23492]
[1724202330485,0.00821,59189.0,59188.0,0.23592]
[1724202330716,0.00821,59189.0,59188.0,0.35052312]
[1724202330919,0.00821,59189.0,59188.0,0.30002]
[1724202331154,0.00821,59189.0,59188.0,0.37775221]
[1724202331436,1e-06,59189.0,59188.0,0.77802054]
[1724202331975,1e-06,59189.0,59188.0,0.81740827]
[1724202332401,1e-06,59189.0,59188.0,0.67700791]
[1724202332603,1e-06,59189.0,59188.0,0.81740827]
[1724202333266,1e-06,59189.0,59188.0,0.69100791]
[1724202333461,0.00821,59193.0,59192.0,0.33172]
[1724202333612,0.00821,59193.0,59192.0,0.68129879]
[1724202334404,0.00821,59196.0,59195.0,0.12002]
[1724202334628,0.00821,59196.0,59195.0,0.24302]
[1724202335648,0.07531,59209.0,59195.0,0.24302]
[1724202335649,0.000821,59208.0,59206.0,0.001]
[1724202335853,0.000821,59208.0,59207.0,0.2968]
[1724202336057,0.000821,59208.0,59207.0,0.43072]
[1724202336263,0.000821,59208.0,59207.0,0.43172]
[1724202336916,0.000821,59208.0,59207.0,0.45472]
[1724202337125,0.084821,59208.0,59207.0,0.15692]
[1724202337332,0.084821,59208.0,59207.0,0.05692]
[1724202337537,0.150621,59208.0,59207.0,0.05692]
[1724202338229,0.1493,59224.0,59216.0,0.2978]
[1724202338444,0.20821,59249.0,59216.0,0.2978]
[1724202338445,0.15441,59228.0,59216.0,0.51962]
[1724202338659,0.15441,59228.0,59216.0,0.54462]
[1724202338866,0.15441,59228.0,59216.0,0.54262]
[1724202339083,0.15441,59228.0,59216.0,0.54462]
[1724202339286,0.15441,59228.0,59216.0,0.54662]
[1724202339545,0.15441,59228.0,59216.0,0.54262]
[1724202339764,0.15441,59228.0,59216.0,0.55662]
[1724202340168,0.15441,59228.0,59216.0,0.55862]
[1724202341100,0.15441,59228.0,59216.0,0.54262]
[1724202341501,0.15441,59228.0,59216.0,0.55662]
[1724202341831,0.15441,59228.0,59216.0,0.56681743]
[1724202342190,0.00821,59228.0,59221.0,0.001]
[1724202342388,0.00821,59228.0,59221.0,0.11912]
[1724202342632,0.00821,59228.0,59221.0,0.24212]
[1724202342883,1e-06,59222.0,59221.0,0.24212]
[1724202343266,0.00821,59228.0,59224.0,0.03892]
[1724202343469,1e-06,59225.0,59224.0,0.20552]
[1724202343926,1e-06,59225.0,59224.0,0.28572]
[1724202344354,1e-06,59228.0,59227.0,0.18572]
[1724202344601,1e-06,59228.0,59227.0,0.58252]
[1724202344825,0.0856,59245.0,59238.0,0.41622]
[1724202345028,0.0856,59245.0,59238.0,0.51622]
[1724202345233,0.01249331,59239.0,59238.0,0.51622]
[1724202345439,0.0002,59239.0,59238.0,0.53922]
[1724202345878,0.0002,59239.0,59238.0,0.53762]
[1724202346125,0.0002,59239.0,59238.0,0.45472]
[1724202347594,0.0002,59239.0,59238.0,0.46872]
[1724202347798,0.0002,59239.0,59238.0,0.45472]
[1724202348204,0.0002,59239.0,59238.0,0.46872]
[1724202349257,0.0002,59239.0,59238.0,0.47072]
[1724202350094,0.00821,59244.0,59243.0,0.001]
[1724202350310,1e-06,59244.0,59243.0,0.12362]
[1724202350521,0.00821,59249.0,59248.0,0.001]
[1724202350738,0.00821,59249.0,59248.0,0.33172]
[1724202351175,0.00821,59249.0,59248.0,0.13392]
[1724202351176,0.16411,59249.0,59248.0,0.13392]
[1724202351379,0.17644848,59249.0,59248.0,0.1569]
[1724202352223,0.17644848,59249.0,59248.0,0.0709]
[1724202352446,0.16411,59249.0,59248.0,0.0709]
[1724202352646,0.16411,59249.0,59248.0,0.023]
[1724202352862,0.16411,59249.0,59245.0,0.023]
[1724202352863,0.17644848,59249.0,59245.0,0.023]
[1724202353287,0.17644848,59249.0,59246.0,0.0339]
[1724202353522,0.17644848,59249.0,59247.0,0.023]
[1724202353954,0.17644848,59249.0,59248.0,0.014]
[1724202354160,0.17644848,59249.0,59248.0,0.023]
[1724202354576,0.17644848,59249.0,59248.0,0.0339]
[1724202354790,0.02054848,59249.0,59248.0,0.0569]
[1724202354999,0.0805,59253.0,59248.0,0.1569]
[1724202355411,0.0805,59253.0,59250.0,0.0339]
[1724202355613,0.0805,59253.0,59252.0,0.0339]
[1724202356041,0.0805,59253.0,59252.0,0.0569]
[1724202358201,0.0805,59253.0,59252.0,0.0709]
[1724202358410,0.00421883,59275.0,59252.0,0.0709]
[1724202358626,0.00421883,59275.0,59253.0,0.0569]
[1724202359258,0.1,59278.0,59253.0,0.023]
[1724202359259,0.00421842,59267.0,59253.0,0.023]
[1724202360522,0.00421842,59267.0,59252.0,0.013]
[1724202360727,0.00421842,59267.0,59253.0,0.023]
[1724202361171,0.00421842,59267.0,59251.0,0.023]
[1724202361392,0.1475,59261.0,59253.0,0.013]
[1724202361568,0.0637,59262.0,59254.0,0.023]
[1724202361804,0.0838,59259.0,59251.0,0.023]
[1724202362018,0.0838,59259.0,59252.0,0.009]
[1724202362225,0.01188776,59258.0,59253.0,0.023]
[1724202362471,0.01188776,59258.0,59251.0,0.024]
[1724202362679,0.01188776,59258.0,59253.0,0.3307]
[1724202362890,0.01188776,59258.0,59255.0,0.0339]
[1724202363094,0.01188776,59258.0,59256.0,0.0569]
[1724202363300,0.1475,59262.0,59256.0,0.0339]
[1724202363519,0.1475,59262.0,59257.0,0.023]
[1724202364820,0.1475,59262.0,59257.0,0.037]
[1724202365491,0.0838,59262.0,59258.0,0.0339]
[1724202365705,0.0838,59262.0,59259.0,0.023]
[1724202366760,0.0685,59261.0,59259.0,0.023]
[1724202366965,0.0685,59261.0,59255.0,0.023]
[1724202366966,0.0853,59260.0,59255.0,0.023]
[1724202367181,0.0853,59260.0,59259.0,0.014]
[1724202367397,0.1538,59260.0,59259.0,0.014]
[1724202367628,0.00421828,59275.0,59248.0,0.1339]
[1724202367629,0.0898,59256.0,59248.0,0.1339]
[1724202367840,0.0706,59255.0,59242.0,0.001]
[1724202368050,0.0898,59254.0,59242.0,0.001]
[1724202368464,0.0706,59255.0,59241.0,0.1339]
[1724202368465,0.0706,59255.0,59243.0,0.001]
[1724202369951,0.0702,59258.0,59248.0,0.001]
[1724202370183,0.0702,59258.0,59250.0,0.0339]
[1724202370396,0.0702,59258.0,59253.0,0.0339]
[1724202370602,0.00421867,59273.0,59253.0,0.0339]
[1724202370603,0.0702,59263.0,59253.0,0.0339]
[1724202370805,0.0702,59263.0,59254.0,0.023]
[1724202371222,0.0702,59263.0,59255.0,0.0882]
[1724202371442,0.0702,59263.0,59256.0,0.023]
[1724202371854,0.08941,59264.0,59256.0,0.023]
[1724202371855,0.01138668,59262.0,59256.0,0.023]
[1724202372277,0.0897,59261.0,59256.0,0.023]